bitfinex-derivatives/quotes_SOLF0:USTF0_20260116
["timestamp","ask_amount","ask_price","bid_price","bid_amount"]
[1768577866167,5.25900797,141.62,141.53,9.62213002]
[1768577866364,6.3581,141.6,141.53,9.62213002]
[1768577866864,125.81464547,141.64,141.54,6.3607]
[1768577867067,5.25932761,141.63,141.54,6.3607]
[1768577867363,5.25932761,141.62,141.55,3.26093002]
[1768577867569,5.70434547,141.64,141.56,3.26093002]
[1768577868360,6.3573,141.62,141.53,3.26093002]
[1768577869367,6.3573,141.62,141.55,9.62103002]
[1768577869568,12.06104547,141.64,141.55,3.26093002]
[1768577871070,5.70434547,141.64,141.55,3.26093002]
[1768577871266,5.70434547,141.66,141.55,3.26093002]
[1768577871462,5.26558424,141.65,141.55,3.26093002]
[1768577871661,104.57104547,141.66,141.55,3.26093002]
[1768577871864,5.26656243,141.65,141.55,3.26093002]
[1768577872062,104.57104547,141.66,141.55,3.26093002]
[1768577872264,5.26842932,141.65,141.55,3.26093002]
[1768577872465,125.80104547,141.66,141.55,3.26093002]
[1768577872769,6.3574,141.62,141.55,3.26093002]
[1768577873770,6.3574,141.62,141.55,9.62123002]
[1768577874374,5.70434547,141.63,141.53,6.3609]
[1768577874564,104.16192498,141.62,141.52,3.30587589]
[1768577874765,5.27034769,141.61,141.52,3.30587589]
[1768577874966,6.3587,141.59,141.52,9.66757589]
[1768577875263,2.13060501,141.58,141.52,9.66757589]
[1768577876172,2.13060501,141.58,141.53,6.3612]
[1768577876474,6.3587,141.59,141.53,6.3612]
[1768577876666,2.13060501,141.58,141.53,6.3612]
[1768577876969,2.13060501,141.59,141.54,6.3606]
[1768577877272,6.3579,141.61,141.54,6.3606]
[1768577877471,5.2816361,141.6,141.54,6.3606]
[1768577877671,6.3579,141.61,141.54,6.3606]
[1768577877864,5.2816362,141.6,141.54,6.3606]
[1768577878061,6.3579,141.61,141.54,6.3606]
[1768577878262,5.28666045,141.6,141.54,6.3606]
[1768577878577,5.28666045,141.59,141.52,9.66747589]
[1768577878873,5.70604394,141.62,141.52,9.66747589]
[1768577878874,5.28666045,141.58,141.52,3.30587589]
[1768577879074,98.8997,141.61,141.49,3.30587589]
[1768577879376,5.70604394,141.59,141.49,3.30587589]
[1768577879673,5.28788377,141.58,141.46,3.30587589]
[1768577879867,5.28788377,141.57,141.46,3.30587589]
[1768577880068,5.70604394,141.59,141.46,3.30587589]
[1768577880270,6.3605,141.55,141.48,6.3635]
[1768577881181,5.28585416,141.54,141.48,6.3635]
[1768577881377,6.3605,141.55,141.48,6.3635]
[1768577881576,365.3862,141.6,141.49,3.30587589]
[1768577881577,266.48,141.6,141.49,3.30587589]
[1768577881975,266.48,141.6,141.51,3.30587589]
[1768577882365,104.59974394,141.62,141.48,102.29347589]
[1768577882571,98.8977,141.61,141.48,3.30587589]
[1768577882771,5.70604394,141.59,141.49,3.30587589]
[1768577882976,6.3584,141.6,141.5,3.30587589]
[1768577883179,5.70604394,141.61,141.51,3.30587589]
[1768577884174,98.8818,141.64,141.54,3.30587589]
[1768577884175,5.70604394,141.64,141.54,3.30587589]
[1768577884685,266.5,141.65,141.55,3.30587589]
[1768577885373,266.5,141.65,141.58,6.3589]
[1768577885576,12.06184394,141.66,141.58,6.3589]
[1768577885776,26.93604394,141.66,141.55,3.30587589]
[1768577885976,6.3569,141.63,141.55,9.66607589]
[1768577886171,26.93604394,141.66,141.55,3.30587589]
[1768577886371,6.3567,141.64,141.55,3.30587589]
[1768577886572,98.8706,141.65,141.55,3.30587589]
[1768577886775,21.23,141.66,141.55,3.30587589]
[1768577887177,6.3557,141.66,141.55,3.30587589]
[1768577887982,6.356,141.65,141.58,6.3588]
[1768577888679,12.06134394,141.67,141.58,6.3588]
[1768577888879,5.70604394,141.67,141.58,6.3588]
[1768577889187,6.3564,141.64,141.57,3.30587589]
[1768577889577,6.3564,141.64,141.57,9.66527589]
[1768577890381,6.3564,141.64,141.57,6.3594]
[1768577890584,12.06184394,141.66,141.57,6.3594]
[1768577890777,5.70604394,141.66,141.57,6.3594]
[1768577891786,6.356,141.65,141.57,6.3594]
[1768577892086,5.70604394,141.66,141.54,102.24877589]
[1768577892087,5.70604394,141.66,141.58,9.66477589]
[1768577892381,5.70604394,141.66,141.55,3.30587589]
[1768577892581,6.3561,141.65,141.57,6.3594]
[1768577893172,6.3561,141.65,141.58,6.3589]
[1768577893377,6.3552,141.67,141.57,3.30587589]
[1768577893573,5.23428161,141.66,141.57,3.30587589]
[1768577893779,5.23428161,141.65,141.57,3.30587589]
[1768577893979,5.23428161,141.64,141.57,3.30587589]
[1768577894178,6.3552,141.67,141.57,3.30587589]
[1768577894179,293.41604394,141.68,141.57,3.30587589]
[1768577894386,6.3555,141.66,141.59,6.3584]
[1768577894578,5.23395153,141.65,141.59,6.3584]
[1768577895277,299.77094394,141.68,141.57,3.30587589]
[1768577895278,278.54094394,141.68,141.6,3.30587589]
[1768577895485,2.57098696,141.73,141.61,3.30587589]
[1768577896082,2.58332041,141.71,141.63,6.3564]
[1768577896282,2.58332041,141.71,141.61,3.30587589]
[1768577896483,23.81332041,141.74,141.63,3.30587589]
[1768577896781,5.70604394,141.75,141.63,3.30587589]
[1768577896782,2.58332041,141.75,141.65,3.30587589]
[1768577897185,8.93482041,141.75,141.65,3.30587589]
[1768577897678,2.58332041,141.75,141.66,3.30587589]
[1768577897885,2.58332041,141.75,141.64,5.70604394]
[1768577897886,2.60756519,141.76,141.67,3.30587589]
[1768577898184,2.60756519,141.76,141.65,3.30587589]
[1768577898487,98.792,141.77,141.65,9.66157589]
[1768577898488,8.95966519,141.74,141.65,9.66157589]
[1768577898675,2.60756519,141.73,141.62,3.30587589]
[1768577898880,2.61947881,141.72,141.62,3.30587589]
[1768577899087,6.3539,141.7,141.62,9.66297589]
[1768577899288,2.61947881,141.72,141.62,3.30587589]
[1768577900479,8.97247881,141.72,141.63,6.3566]
[1768577901681,2.61947881,141.72,141.64,6.3562]
[1768577902082,2.61947881,141.72,141.62,3.30587589]
[1768577902284,8.97237881,141.72,141.63,6.3566]
[1768577902585,2.66836985,141.71,141.63,6.3566]
[1768577903087,2.67959096,141.7,141.62,3.30587589]
[1768577903481,2.67959096,141.7,141.62,9.66287589]
[1768577904180,2.67959096,141.7,141.62,3.30587589]
[1768577904181,6.3543,141.69,141.62,3.30587589]
[1768577904379,2.67959096,141.7,141.6,6.3579]
[1768577904578,2.67959096,141.7,141.6,3.29092936]
[1768577904779,12.3237208,141.84,141.6,3.29092936]
[1768577904983,3.36468951,141.79,141.68,5.70604394]
[1768577905183,3.36468951,141.79,141.67,98.8543]
[1768577905388,3.36468951,141.79,141.67,6.3548]
[1768577905389,3.36468951,141.78,141.67,6.3548]
[1768577905781,3.36468951,141.77,141.64,214.5306]
[1768577905976,9.07073345,141.77,141.64,214.5306]
[1768577906286,3.36468951,141.76,141.64,214.5306]
[1768577906485,3.36468951,141.76,141.63,5.70604394]
[1768577906486,3.36468951,141.75,141.65,6.3558]
[1768577908789,3.22708813,141.74,141.63,6.3566]
[1768577909188,3.22708813,141.74,141.63,98.8828]
[1768577910089,3.22708813,141.74,141.62,98.8898]
[1768577910090,3.22708813,141.73,141.62,98.8898]
[1768577910590,3.22708813,141.73,141.61,5.70604394]
[1768577910788,3.22708813,141.73,141.62,6.357]
[1768577911183,3.22708813,141.73,141.61,98.8969]
[1768577911583,3.22708813,141.73,141.63,6.3565]
[1768577911889,3.22708813,141.73,141.62,98.8884]
[1768577912891,3.22708813,141.73,141.65,6.3555]
[1768577913692,3.22708813,141.73,141.66,6.3552]
[1768577913893,3.22708813,141.73,141.65,98.8695]
[1768577914289,3.22708813,141.77,141.65,98.8695]
[1768577914586,9.57788813,141.77,141.68,6.3544]
[1768577914790,3.22708813,141.76,141.68,6.3544]
[1768577915088,3.22708813,141.76,141.69,6.3539]
[1768577916797,3.22708813,141.79,141.68,98.8451]
[1768577917800,9.57678813,141.79,141.68,98.8451]
[1768577918100,3.22708813,141.78,141.67,98.8532]
[1768577918301,3.22708813,141.78,141.66,98.859]
[1768577919297,3.22708813,141.78,141.7,6.3533]
[1768577919795,3.22708813,141.78,141.71,6.3531]
[1768577919997,3.22708813,141.78,141.69,98.8395]
[1768577920193,3.22708813,141.81,141.7,98.8328]
[1768577920397,3.22708813,141.81,141.73,6.3522]
[1768577920699,3.22708813,141.81,141.71,98.8269]
[1768577920891,3.22708813,141.81,141.7,98.8328]
[1768577921090,3.22708813,141.81,141.69,98.8395]
[1768577921091,21.75168344,141.85,141.73,98.8111]
[1768577921290,21.75168344,141.85,141.72,98.8207]
[1768577921504,3.22708813,141.84,141.72,98.8207]
[1768577921697,6.3479,141.83,141.75,6.3512]
[1768577924306,9.57538813,141.82,141.73,6.352]
[1768577924612,3.22708813,141.82,141.73,6.352]
[1768577924904,3.22708813,141.82,141.69,104.53594088]
[1768577924905,3.22708813,141.82,141.71,98.8254]
[1768577925494,3.22708813,141.82,141.71,98.8238]
[1768577926091,27.5777,141.84,141.72,98.8195]
[1768577926298,21.23,141.84,141.72,98.8195]
[1768577926597,24.45708813,141.84,141.72,98.8195]
[1768577926908,6.3479,141.83,141.72,98.8195]
[1768577927307,3.22708813,141.84,141.74,98.8051]
[1768577927493,3.22708813,141.84,141.73,104.50634088]
[1768577927700,3.22708813,141.84,141.73,5.69644088]
[1768577928099,18.52459531,141.85,141.77,6.3503]
[1768577928304,18.52459531,141.85,141.75,98.7976]
[1768577928505,18.52459531,141.85,141.74,98.8052]
[1768577928810,18.52459531,141.85,141.76,98.7924]
[1768577928996,18.52459531,141.85,141.77,98.7841]
[1768577929198,18.52459531,141.85,141.78,98.7785]
[1768577929906,104.38184088,141.92,141.78,98.7785]
[1768577929907,24.45708813,141.92,141.79,98.7707]
[1768577930202,24.45708813,141.92,141.8,98.7649]
[1768577930714,6.3433,141.94,141.83,98.7406]
[1768577930905,3.22708813,141.94,141.82,5.69644088]
[1768577931807,3.12974016,141.91,141.82,6.348]
[1768577932006,3.12974016,141.91,141.81,98.7549]
[1768577932204,24.35974016,141.94,141.81,98.7549]
[1768577932402,3.12974016,141.93,141.82,6.3479]
[1768577932906,3.12974016,141.93,141.84,6.3473]
[1768577933114,3.12974016,141.93,141.83,98.7411]
[1768577933511,104.34634088,141.97,141.83,98.7411]
[1768577933704,3.12974016,141.96,141.83,98.7411]
[1768577933909,9.47194016,141.96,141.85,98.7296]
[1768577934110,3.12974016,141.96,141.84,98.7362]
[1768577934414,6.3439,141.92,141.82,5.69644088]
[1768577934804,3.12974016,141.94,141.82,104.44254088]
[1768577935007,3.12974016,141.94,141.83,98.744]
[1768577935710,6.3422,141.96,141.86,6.3461]
[1768577936105,3.12974016,141.96,141.86,6.3461]
[1768577936305,6.343,141.94,141.84,6.3472]
[1768577936712,6.343,141.94,141.82,104.44254088]
[1768577937111,6.3435,141.93,141.82,5.69644088]
[1768577937512,3.12974016,141.92,141.8,98.7597]
[1768577937816,3.12974016,141.92,141.81,5.69644088]
[1768577938119,3.12974016,141.92,141.81,12.04484088]
[1768577938315,3.12974016,141.92,141.78,104.47394088]
[1768577939118,3.12974016,141.92,141.79,98.7687]
[1768577939416,3.12974016,141.92,141.8,98.7642]
[1768577939912,98.6727,141.94,141.79,98.7687]
[1768577939913,3.12974016,141.91,141.79,5.69644088]
[1768577940717,6.3453,141.89,141.79,5.69644088]
[1768577940918,3.12974016,141.91,141.79,5.69644088]
[1768577941720,101.82444016,141.91,141.78,6.3497]
[1768577941918,3.12974016,141.89,141.76,5.69644088]
[1768577942225,3.12974016,141.87,141.74,104.50034088]
[1768577942432,6.3467,141.86,141.77,6.3504]
[1768577943022,6.3467,141.86,141.78,6.3499]
[1768577944114,6.3467,141.86,141.74,104.50034088]
[1768577944115,6.347,141.85,141.76,6.3506]
[1768577944314,3.12974016,141.86,141.76,6.3506]
[1768577945518,3.12974016,141.84,141.71,98.8264]
[1768577945718,3.12974016,141.84,141.71,104.52284088]
[1768577946218,3.12974016,141.84,141.74,98.8037]
[1768577946420,3.12974016,141.88,141.75,98.7993]
[1768577946924,6.3465,141.86,141.78,6.3499]
[1768577947512,9.47564016,141.88,141.79,6.3494]
[1768577947822,3.12974016,141.88,141.79,6.3494]
[1768577948016,3.12974016,141.88,141.75,98.7993]
[1768577948222,6.3471,141.85,141.77,6.3502]
[1768577948824,3.12974016,141.87,141.77,6.3502]
[1768577950524,6.347,141.85,141.78,6.35]
[1768577950927,6.347,141.85,141.76,6.3506]
[1768577951123,6.347,141.85,141.74,98.8037]
[1768577951727,6.347,141.85,141.77,6.3504]
[1768577952121,9.47614016,141.87,141.75,98.7991]
[1768577952322,9.47614016,141.87,141.8,6.349]
[1768577953023,9.47614016,141.87,141.78,6.3497]
[1768577953220,9.47614016,141.87,141.76,98.7921]
[1768577954022,3.12974016,141.87,141.75,104.49554088]
[1768577954931,3.12974016,141.87,141.79,6.3495]
[1768577955132,3.12974016,141.87,141.73,98.812]
[1768577955330,3.12974016,141.87,141.73,104.50844088]
[1768577956127,6.3474,141.84,141.77,6.3504]
[1768577956332,3.12974016,141.87,141.76,98.7895]
[1768577957331,3.12974016,141.87,141.78,2.12205004]
[1768577957634,5.2517902,141.87,141.75,98.7969]
[1768577957842,5.2517902,141.87,141.77,2.12205004]
[1768577958528,5.2517902,141.87,141.74,359.7867]
[1768577958927,2.12205004,141.86,141.77,2.12205004]
[1768577959235,98.7124,141.88,141.79,2.12205004]
[1768577959236,2.12205004,141.88,141.79,2.12205004]
[1768577959534,5.2517902,141.88,141.79,2.12205004]
[1768577959739,9.47544016,141.88,141.81,6.3486]
[1768577959937,3.12974016,141.88,141.81,6.3486]
[1768577960438,5.2517902,141.9,141.81,6.3486]
[1768577960634,5.2517902,141.9,141.77,98.7811]
[1768577960635,3.12974016,141.89,141.79,6.3493]
[1768577960841,2.12205004,141.9,141.79,2.12205004]
[1768577960842,5.2517902,141.88,141.79,2.12205004]
[1768577961043,5.2517902,141.88,141.72,98.8191]
[1768577961044,5.2517902,141.84,141.72,98.8191]
[1768577961340,5.2517902,141.84,141.75,6.3511]
[1768577961541,3.00932923,141.83,141.74,2.12205004]
[1768577961745,9.35712923,141.83,141.76,6.3509]
[1768577962341,6.3483,141.82,141.75,6.351]
[1768577963342,3.00932923,141.83,141.76,6.3509]
[1768577963544,5.13137927,141.83,141.76,6.3509]
[1768577963838,3.00932923,141.82,141.7,98.8331]
[1768577964033,5.13137927,141.81,141.7,98.8331]
[1768577964237,5.13137927,141.81,141.72,2.12205004]
[1768577964446,5.13137927,141.81,141.73,6.3522]
[1768577964648,5.13137927,141.81,141.72,2.12205004]
[1768577964844,3.00932923,141.8,141.68,98.8461]
[1768577965042,119.9773,141.83,141.68,98.8461]
[1768577965043,5.13137927,141.79,141.69,2.12205004]
[1768577965443,3.00932923,141.79,141.68,98.8461]
[1768577965742,9.35912923,141.79,141.71,6.3529]
[1768577966244,3.00932923,141.82,141.7,98.8345]
[1768577967144,3.00932923,141.82,141.73,6.3522]
[1768577967448,3.00932923,141.8,141.66,104.54771557]
[1768577967636,3.00932923,141.8,141.67,98.8542]
[1768577968034,6.3503,141.78,141.7,6.3535]
[1768577970247,6.3503,141.78,141.71,6.3531]
[1768577971339,9.45578852,141.78,141.71,6.3531]
[1768577971543,9.45608852,141.77,141.69,6.3537]
[1768577971741,9.45608852,141.77,141.67,98.8542]
[1768577971944,3.10548852,141.77,141.67,98.8542]
[1768577972848,3.10548852,141.77,141.7,6.3535]
[1768577973244,6.3501,141.78,141.68,98.8473]
[1768577974745,6.3501,141.78,141.71,6.3531]
[1768577975951,9.45558852,141.78,141.71,6.3531]
[1768577976251,9.45598852,141.77,141.66,266.79093129]
[1768577976550,9.45598852,141.77,141.7,6.3536]
[1768577976850,98.7684,141.8,141.66,104.55013129]
[1768577976851,9.45648852,141.76,141.66,104.55013129]
[1768577977040,9.45648852,141.76,141.66,98.8592]
[1768577977248,9.45698852,141.75,141.68,6.3541]
[1768577977949,3.10548852,141.74,141.66,6.355]
[1768577978542,6.3529,141.72,141.64,6.3559]
[1768577978742,9.45838852,141.72,141.61,365.72173129]
[1768577978938,9.45838852,141.72,141.62,98.8903]
[1768577979144,3.10548852,141.72,141.65,6.3557]
[1768577979352,3.10548852,141.72,141.62,98.8903]
[1768577980846,3.10548852,141.72,141.66,6.3553]
[1768577981254,3.10548852,141.72,141.64,6.3559]
[1768577982651,9.45878852,141.71,141.64,6.3559]
[1768577983052,9.45878852,141.71,141.6,98.9036]
[1768577983242,9.45978852,141.69,141.58,98.9172]
[1768577983444,3.10548852,141.68,141.57,360.1222]
[1768577983646,3.10548852,141.68,141.57,98.9222]
[1768577984248,9.46068852,141.67,141.58,6.3588]
[1768577984560,9.46068852,141.67,141.56,104.62183129]
[1768577985449,9.46068852,141.67,141.57,98.9244]
[1768577985450,3.10548852,141.67,141.57,98.9244]
[1768577985657,3.10548852,141.72,141.6,98.9034]
[1768577986445,3.10548852,141.72,141.61,6.3574]
[1768577986446,6.3538,141.7,141.61,6.3574]
[1768577986647,3.10548852,141.69,141.61,6.3574]
[1768577987058,3.10548852,141.67,141.59,6.3583]
[1768577987358,3.10548852,141.67,141.57,360.1844]
[1768577987659,3.10548852,141.67,141.58,98.9181]
[1768577987853,3.10548852,141.67,141.61,6.3575]
[1768577988352,6.3542,141.69,141.58,98.9181]
[1768577988353,9.45968852,141.69,141.59,98.9108]
[1768577989056,3.10548852,141.69,141.6,98.9024]
[1768577989254,3.10548852,141.73,141.62,98.8892]
[1768577989445,3.10548852,141.73,141.61,98.8951]
[1768577989647,3.10548852,141.7,141.6,98.9036]
[1768577989848,5.69093129,141.73,141.61,98.897]
[1768577990051,3.10548852,141.73,141.65,6.3558]
[1768577990354,3.10548852,141.73,141.63,98.8814]
[1768577991058,3.10548852,141.73,141.66,6.3553]
[1768577992963,3.10548852,141.73,141.67,6.3549]
[1768577993250,3.30468606,141.76,141.64,98.8756]
[1768577993457,3.30468606,141.75,141.67,6.3549]
[1768577995059,3.30468606,141.74,141.65,6.3557]
[1768577995261,3.30468606,141.74,141.63,104.57233129]
[1768577995459,3.30468606,141.74,141.64,98.8766]
[1768577995860,9.65668606,141.74,141.65,6.3555]
[1768577996058,3.30468606,141.73,141.65,6.3555]
[1768577996559,3.30468606,141.73,141.63,104.57233129]
[1768577997058,3.30468606,141.73,141.66,6.3552]
[1768577997653,9.65698606,141.73,141.63,98.8814]
[1768577997858,3.30468606,141.76,141.64,98.8753]
[1768577998757,6.3518,141.75,141.67,6.3547]
[1768577998958,3.30468606,141.74,141.67,6.3547]
[1768577999147,3.30468606,141.74,141.61,98.897]
[1768577999349,3.30468606,141.73,141.65,2.12600815]
[1768578000251,5.43069421,141.73,141.65,2.12600815]
[1768578000453,3.30468606,141.72,141.65,8.48150815]
[1768578000759,3.30468606,141.72,141.65,2.12600815]
[1768578000954,3.30468606,141.71,141.63,6.3564]
[1768578001454,9.65838606,141.7,141.62,2.12600815]
[1768578001660,9.65838606,141.7,141.61,2.12600815]
[1768578001661,3.30468606,141.69,141.61,2.12600815]
[1768578002159,9.65778606,141.72,141.63,2.12600815]
[1768578002862,3.30468606,141.7,141.62,2.12600815]
[1768578003455,3.30468606,141.7,141.64,6.3563]
[1768578003654,3.30468606,141.7,141.64,8.48230815]
[1768578003961,3.30468606,141.7,141.63,6.3565]
[1768578004460,3.30468606,141.7,141.63,8.48250815]
[1768578004765,3.30468606,141.69,141.62,2.12600815]
[1768578004969,3.30468606,141.69,141.59,98.9108]
[1768578006054,3.30468606,141.68,141.58,365.97504759]
[1768578006261,3.30468606,141.68,141.57,5.69754759]
[1768578006665,9.65978606,141.67,141.6,6.358]
[1768578006862,3.30468606,141.66,141.6,6.358]
[1768578007064,3.30468606,141.69,141.57,104.61844759]
[1768578007667,3.30468606,141.67,141.6,6.3578]
[1768578008755,3.30468606,141.66,141.58,6.3587]
[1768578009160,3.30468606,141.66,141.59,6.3583]
[1768578009458,3.30468606,141.66,141.56,98.9293]
[1768578009667,3.30468606,141.63,141.53,360.3517]
[1768578010065,3.30468606,141.63,141.53,98.9517]
[1768578010767,3.30468606,141.62,141.54,6.3605]
[1768578010958,3.30468606,141.62,141.52,267.09754759]
[1768578011159,3.30468606,141.62,141.55,6.3602]
[1768578012470,3.30468606,141.62,141.51,5.69754759]
[1768578012662,3.30468606,141.62,141.5,104.67014759]
[1768578012971,3.30468606,141.65,141.54,98.946]
[1768578013766,3.30468606,141.65,141.55,98.9388]
[1768578014264,3.30468606,141.65,141.54,98.946]
[1768578014468,3.30468606,141.65,141.54,366.10354759]
[1768578015071,3.30468606,141.64,141.55,6.3601]
[1768578015772,3.30468606,141.62,141.51,5.69754759]
[1768578015971,3.30468606,141.62,141.52,98.9597]
[1768578016271,9.66198606,141.62,141.53,6.361]
[1768578016470,3.30468606,141.61,141.53,6.361]
[1768578017264,6.3569,141.63,141.52,98.9557]
[1768578017477,3.30468606,141.62,141.52,98.9557]
[1768578017766,3.30468606,141.62,141.53,6.361]
[1768578018263,3.30468606,141.62,141.54,6.3607]
[1768578018468,3.30468606,141.61,141.51,366.15894759]
[1768578019477,3.30468606,141.61,141.54,6.3607]
[1768578020678,6.3583,141.6,141.51,12.05944759]
[1768578020879,3.30468606,141.61,141.51,12.05944759]
[1768578021271,6.3582,141.6,141.52,6.3616]
[1768578021470,3.09321086,141.6,141.48,360.5274]
[1768578022573,3.09321086,141.6,141.49,98.9805]
[1768578023080,9.45191086,141.59,141.5,6.3623]
[1768578023282,9.45191086,141.59,141.48,360.5274]
[1768578023878,3.09321086,141.58,141.48,360.5274]
[1768578024174,3.09321086,141.57,141.45,104.70274759]
[1768578024580,3.09321086,141.56,141.43,123.2445429]
[1768578024780,3.09321086,141.56,141.44,99.0162]
[1768578025482,9.45331086,141.56,141.48,6.3634]
[1768578025783,9.45331086,141.56,141.46,6.3641]
[1768578025981,3.09321086,141.55,141.46,6.3641]
[1768578026984,3.09321086,141.55,141.47,6.3638]
[1768578027178,3.09321086,141.58,141.47,98.9953]
[1768578027374,3.09321086,141.58,141.46,99.0022]
[1768578027773,3.09321086,141.55,141.47,6.3637]
[1768578028079,3.09321086,141.55,141.43,379.16699531]
[1768578028885,3.29742113,141.53,141.46,6.3643]
[1768578030177,3.29742113,141.55,141.47,8.49572426]
[1768578030878,9.65792113,141.55,141.47,8.49572426]
[1768578031084,3.29742113,141.54,141.47,8.49572426]
[1768578031284,3.29742113,141.54,141.47,6.3638]
[1768578031881,9.65832113,141.54,141.46,2.13169516]
[1768578032084,5.42911629,141.53,141.45,6.3645]
[1768578032781,3.29742113,141.53,141.45,6.3645]
[1768578033879,3.29742113,141.52,141.44,2.13169516]
[1768578034173,2.13169516,141.51,141.43,20.65629047]
[1768578034376,5.42911629,141.51,141.43,20.65629047]
[1768578034787,3.29742113,141.51,141.43,20.65629047]
[1768578034986,11.79131629,141.51,141.44,6.3652]
[1768578035574,5.42911629,141.51,141.45,6.3648]
[1768578035781,3.29742113,141.51,141.45,6.3648]
[1768578035978,2.13169516,141.52,141.43,18.52459531]
[1768578036183,8.49349516,141.52,141.45,6.3648]
[1768578036477,9.65922113,141.52,141.45,6.3648]
[1768578036880,6.3611,141.54,141.46,6.3643]
[1768578037080,11.79021629,141.54,141.46,6.3643]
[1768578037281,3.29742113,141.53,141.46,6.3643]
[1768578037583,3.29742113,141.53,141.47,6.3638]
[1768578037790,3.29742113,141.56,141.46,2.13169516]
[1768578037988,3.29742113,141.55,141.47,2.13169516]
[1768578038180,3.29742113,141.54,141.48,6.3635]
[1768578038981,3.29742113,141.53,141.45,2.13169516]
[1768578039482,3.29742113,141.53,141.48,6.3634]
[1768578039787,3.29742113,141.53,141.46,2.13169516]
[1768578039991,3.29742113,141.53,141.47,6.3639]
[1768578040487,3.29742113,141.53,141.48,6.3634]
[1768578041879,3.29742113,141.53,141.46,6.364]
[1768578042080,3.29742113,141.52,141.43,20.65629047]
[1768578042275,2.13169516,141.53,141.43,18.52459531]
[1768578042276,3.29742113,141.5,141.43,18.52459531]
[1768578043685,3.29742113,141.48,141.43,18.52459531]
[1768578044077,9.66092113,141.48,141.43,15.18170377]
[1768578044276,3.29742113,141.46,141.38,2.13169516]
[1768578044786,3.29742113,141.46,141.34,99.0863]
[1768578044982,3.29742113,141.46,141.37,2.13169516]
[1768578045181,3.29742113,141.45,141.37,2.13169516]
[1768578045595,3.29742113,141.45,141.38,6.368]
[1768578046284,8.49649516,141.46,141.36,2.13169516]
[1768578046285,3.29742113,141.44,141.36,2.13169516]
[1768578046794,3.29742113,141.44,141.37,6.3683]
[1768578047091,3.29742113,141.44,141.36,2.13169516]
[1768578047893,3.29742113,141.44,141.38,6.368]
[1768578048394,3.29742113,141.47,141.38,2.13169516]
[1768578048985,9.66142113,141.47,141.4,6.3669]
[1768578050393,9.66192113,141.46,141.38,2.13169516]
[1768578051191,3.29742113,141.46,141.39,6.3675]
[1768578051494,3.29742113,141.46,141.37,99.0655]
[1768578051694,3.29742113,141.46,141.39,2.13169516]
[1768578051892,3.29742113,141.46,141.38,6.3677]
[1768578052092,3.29742113,141.46,141.39,2.13169516]
[1768578052796,6.3635,141.48,141.41,6.3666]
[1768578052985,5.31600873,141.49,141.41,6.3666]
[1768578053390,11.67910873,141.49,141.41,6.3666]
[1768578053593,3.18431357,141.48,141.41,8.49829516]
[1768578053790,3.18431357,141.51,141.41,2.13169516]
[1768578054095,3.18431357,141.51,141.44,2.13169516]
[1768578054795,3.18431357,141.51,141.44,8.49679516]
[1768578055095,3.18431357,141.51,141.44,6.3651]
[1768578055291,3.18431357,141.51,141.44,8.49679516]
[1768578056582,3.18431357,141.5,141.43,2.13169516]
[1768578056782,3.18431357,141.5,141.38,99.0552]
[1768578056988,3.18431357,141.47,141.38,99.0552]
[1768578057185,3.18431357,141.47,141.4,2.13169516]
[1768578057389,3.18431357,141.47,141.41,6.3666]
[1768578057999,3.18431357,141.5,141.42,2.13169516]
[1768578058998,3.18431357,141.5,141.42,6.3658]
[1768578059199,3.18431357,141.5,141.42,8.49749516]
[1768578059503,9.54701357,141.5,141.43,6.3657]
[1768578060304,3.18431357,141.5,141.44,6.3652]
[1768578061198,3.18431357,141.5,141.45,6.3648]
[1768578061398,3.18431357,141.5,141.41,99.0334]
[1768578061703,3.18431357,141.5,141.4,99.0415]
[1768578061898,3.18431357,141.46,141.39,2.13169516]
[1768578062097,3.18431357,141.46,141.36,99.0688]
[1768578062098,3.18431357,141.46,141.37,2.13169516]
[1768578062398,3.18431357,141.45,141.37,2.13169516]
[1768578062604,9.54961357,141.44,141.36,2.13169516]
[1768578062902,3.18431357,141.43,141.36,2.13169516]
[1768578063805,3.18431357,141.43,141.31,99.1052]
[1768578063806,9.55021357,141.43,141.31,99.1052]
[1768578064005,9.55021357,141.43,141.36,2.13169516]
[1768578064306,9.55021357,141.43,141.29,99.1194]
[1768578064307,3.18431357,141.38,141.29,6.3718]
[1768578064506,3.18431357,141.38,141.27,99.1344]
[1768578064805,3.18431357,141.38,141.28,99.1282]